bitfinex-derivatives/quotes_ETHF0:USTF0_20241022
["timestamp","ask_amount","ask_price","bid_price","bid_amount"]
[1729632883929,0.96803061,2634.4,2634.3,3.58757]
[1729632884825,0.96803061,2634.4,2634.3,0.37977]
[1729632885027,0.96803061,2634.4,2634.3,3.58757]
[1729632890030,0.96803061,2634.4,2634.3,0.37977]
[1729632890738,0.96803061,2634.4,2634.3,3.58757]
[1729632894944,0.96803061,2634.4,2634.3,0.37977]
[1729632895334,0.96803061,2634.4,2634.3,3.58757]
[1729632895946,0.96803061,2634.4,2634.3,0.37977]
[1729632896338,0.96803061,2634.4,2634.3,3.58757]
[1729632897244,0.609215,2634.5,2634.4,0.37976]
[1729632897448,1.57724561,2634.5,2634.4,0.37976]
[1729632899049,1.38813061,2634.5,2634.4,0.37976]
[1729632899645,1.57778919,2634.5,2634.4,0.37976]
[1729632899946,1.57778919,2634.5,2634.4,3.58756]
[1729632900146,0.96803061,2634.5,2634.4,3.58756]
[1729632900341,0.8045,2634.9,2634.8,0.3797]
[1729632900540,1.77253061,2634.9,2634.8,0.3797]
[1729632900942,1.7602,2635.1,2635.0,0.37967]
[1729632901142,3.11513061,2635.1,2635.0,0.37967]
[1729632901538,3.11513061,2635.1,2635.0,1.74967]
[1729632901539,1.74513061,2635.1,2635.0,1.74967]
[1729632905654,1.74513061,2635.1,2635.0,4.95747]
[1729632905855,3.2078,2635.6,2635.1,0.37966]
[1729632906056,0.8,2635.8,2635.2,1.7734]
[1729632906057,0.422,2635.3,2635.2,1.7734]
[1729632906346,0.422,2635.3,2635.2,2.15304]
[1729632909155,1.37,2635.4,2635.2,1.7734]
[1729632909351,1.7617,2635.4,2635.3,0.37963]
[1729632909651,1.7617,2635.4,2635.3,4.95743]
[1729632909652,0.3917,2635.4,2635.3,4.95743]
[1729632909847,0.3917,2635.4,2635.3,5.34703]
[1729632911952,0.8191,2635.5,2635.3,8.7618]
[1729632911953,0.4177,2635.5,2635.3,8.7618]
[1729632912148,0.4177,2635.5,2635.4,1.74961]
[1729632912553,0.8112,2635.5,2635.4,1.74961]
[1729632912754,2.1812,2635.5,2635.4,0.37961]
[1729632913846,0.8112,2635.5,2635.4,1.74961]
[1729632915455,0.8112,2635.5,2635.4,4.95741]
[1729632915955,0.8112,2635.5,2635.4,1.74961]
[1729632916856,0.8112,2635.5,2635.4,4.95741]
[1729632917265,0.8112,2635.5,2635.4,1.74961]
[1729632917655,0.8112,2635.5,2635.4,4.95741]
[1729632918055,0.3935,2635.5,2635.4,5.35421]
[1729632919758,0.3935,2635.5,2635.4,9.14861]
[1729632919957,1.15916,2635.8,2635.7,0.37957]
[1729632920154,2.95066,2635.8,2635.7,0.37957]
[1729632922657,0.37957,2635.7,2635.6,1.74958]
[1729632923169,2.95067,2635.8,2635.7,0.37957]
[1729632924461,2.5711,2635.8,2635.6,1.37]
[1729632924660,0.37957,2635.7,2635.6,1.74957]
[1729632925869,1.2011,2635.8,2635.7,0.37957]
[1729632926064,2.5711,2635.8,2635.7,0.37957]
[1729632926464,2.95066,2635.8,2635.7,0.37957]
[1729632926765,1.2011,2635.8,2635.7,1.74957]
[1729632927161,0.4215,2635.8,2635.7,1.74957]
[1729632927561,0.4215,2635.8,2635.7,2.14067]
[1729632927767,1.74954,2636.0,2635.9,0.37954]
[1729632928063,1.7583,2636.0,2635.9,0.37954]
[1729632928263,2.13783,2636.0,2635.9,0.37954]
[1729632928465,2.32352387,2636.0,2635.9,0.37954]
[1729632932359,0.95352387,2636.0,2635.9,1.74954]
[1729632932760,2.32352387,2636.0,2635.9,1.74954]
[1729632939071,1.94399387,2636.0,2635.9,1.74954]
[1729632939967,2.32352387,2636.0,2635.9,1.74954]
[1729632941577,1.94399387,2636.0,2635.9,1.74954]
[1729632941867,2.32352387,2636.0,2635.9,1.74954]
[1729632946274,1.94399387,2636.0,2635.9,1.74954]
[1729632947176,2.32352387,2636.0,2635.9,1.74954]
[1729632947373,0.95352387,2636.0,2635.9,1.74954]
[1729632948878,0.57399387,2636.0,2635.9,1.74954]
[1729632949976,0.57399387,2636.0,2635.9,4.95734]
[1729632951768,0.57399387,2636.0,2635.9,1.74954]
[1729632951974,0.57399387,2636.0,2635.9,4.95734]
[1729632953082,0.57399387,2636.0,2635.9,1.74954]
[1729632953283,0.95352387,2636.0,2635.9,1.74954]
[1729632953478,0.95352387,2636.0,2635.9,4.95734]
[1729632953976,0.57399387,2636.0,2635.9,4.95734]
[1729632954478,0.95352387,2636.0,2635.9,4.95734]
[1729632955271,0.95352387,2636.0,2635.9,1.74954]
[1729632955673,0.95352387,2636.0,2635.9,4.95734]
[1729632956583,0.95352387,2636.0,2635.9,0.37954]
[1729632956780,0.95352387,2636.0,2635.9,4.95734]
[1729632957574,0.95352387,2636.0,2635.9,1.74954]
[1729632957777,0.95352387,2636.0,2635.9,4.95734]
[1729632958282,0.95352387,2636.0,2635.9,1.74954]
[1729632959894,0.57399387,2636.0,2635.9,1.74954]
[1729632960180,0.57399387,2636.0,2635.9,4.95734]
[1729632960378,0.57399387,2636.0,2635.9,1.74954]
[1729632960575,0.95352387,2636.0,2635.9,4.95734]
[1729632961882,0.95352387,2636.0,2635.9,1.74954]
[1729632962082,0.95352387,2636.0,2635.9,4.95734]
[1729632962384,0.57399387,2636.0,2635.9,4.95734]
[1729632962683,0.95352387,2636.0,2635.9,4.95734]
[1729632963183,0.95352387,2636.0,2635.9,1.74954]
[1729632963381,0.95352387,2636.0,2635.9,4.95734]
[1729632964084,0.57399387,2636.0,2635.9,4.95734]
[1729632964676,0.3883,2636.0,2635.9,4.95734]
[1729632965189,0.58185549,2636.0,2635.9,4.95734]
[1729632967482,0.96138549,2636.0,2635.9,4.95734]
[1729632967877,0.76783,2636.0,2635.9,4.95734]
[1729632968572,0.96003614,2636.0,2635.9,4.95734]
[1729632969283,0.37953,2636.1,2636.0,0.37952]
[1729632974388,0.37953,2636.1,2636.0,1.74952]
[1729632983791,0.37953,2636.1,2636.0,0.37952]
[1729633004108,0.37953,2636.1,2636.0,3.58732]
[1729633005311,0.37953,2636.1,2636.0,0.37952]
[1729633005509,0.37953,2636.1,2636.0,3.58732]
[1729633006108,0.37953,2636.1,2636.0,0.37952]
[1729633006308,0.37953,2636.1,2636.0,3.58732]
[1729633007113,0.37953,2636.1,2636.0,0.37952]
[1729633007308,0.37953,2636.1,2636.0,3.58732]
[1729633007705,0.37953,2636.1,2636.0,0.76592]
[1729633008005,0.37953,2636.1,2636.0,3.97372]
[1729633008807,0.37953,2636.1,2636.0,5.34372]
[1729633012912,0.37953,2636.1,2636.0,3.97372]
[1729633015114,0.37953,2636.1,2636.0,0.76592]
[1729633015709,0.37953,2636.1,2636.0,3.97372]
[1729633017216,0.37953,2636.1,2636.0,0.76592]
[1729633017409,0.37953,2636.1,2636.0,3.97372]
[1729633017916,0.37953,2636.1,2636.0,0.76592]
[1729633018117,0.37953,2636.1,2636.0,3.97372]
[1729633018816,0.37953,2636.1,2636.0,0.76592]
[1729633019011,0.37953,2636.1,2636.0,3.97372]
[1729633019819,0.37953,2636.1,2636.0,5.34372]
[1729633020718,0.37953,2636.1,2636.0,2.13592]
[1729633021119,0.37953,2636.1,2636.0,5.34372]
[1729633022118,0.37953,2636.1,2636.0,2.13592]
[1729633022318,0.37953,2636.1,2636.0,5.34372]
[1729633023521,0.37953,2636.1,2636.0,2.13592]
[1729633023722,0.37953,2636.1,2636.0,5.34372]
[1729633025023,0.37953,2636.1,2636.0,2.13592]
[1729633025415,0.37953,2636.1,2636.0,5.34372]
[1729633026120,0.37953,2636.1,2636.0,2.13592]
[1729633026423,0.37953,2636.1,2636.0,5.34372]
[1729633030420,0.37953,2636.1,2636.0,2.13592]
[1729633030621,0.37953,2636.1,2636.0,5.34372]
[1729633033627,0.37953,2636.1,2636.0,2.13592]
[1729633034029,0.37953,2636.1,2636.0,5.34372]
[1729633034919,0.37953,2636.1,2636.0,2.13592]
[1729633035123,0.37953,2636.1,2636.0,5.34372]
[1729633035519,0.37953,2636.1,2636.0,2.13592]
[1729633035820,0.37953,2636.1,2636.0,5.34372]
[1729633036026,0.37953,2636.1,2636.0,2.13592]
[1729633036221,0.37953,2636.1,2636.0,5.34372]
[1729633038927,0.37953,2636.1,2636.0,2.13592]
[1729633039635,0.37953,2636.1,2636.0,5.34372]
[1729633040232,0.37953,2636.1,2636.0,2.13592]
[1729633040530,0.37953,2636.1,2636.0,5.34372]
[1729633044036,0.37953,2636.1,2636.0,2.13592]
[1729633044529,0.37953,2636.1,2636.0,5.34372]
[1729633045529,0.37953,2636.1,2636.0,2.13592]
[1729633045729,0.37953,2636.1,2636.0,5.34372]
[1729633047036,0.37953,2636.1,2636.0,2.13592]
[1729633047235,0.37953,2636.1,2636.0,5.34372]
[1729633049831,0.37953,2636.1,2636.0,3.26150813]
[1729633050434,0.37953,2636.1,2636.0,0.05370813]
[1729633050631,0.37953,2636.1,2636.0,3.64102813]
[1729633050827,0.37953,2636.1,2636.0,0.43322813]
[1729633051033,0.37953,2636.1,2636.0,3.64102813]
[1729633051431,0.37953,2636.1,2636.0,0.43322813]
[1729633051741,0.37953,2636.1,2636.0,3.64102813]
[1729633053436,0.37953,2636.1,2636.0,0.43322813]
[1729633053637,0.37953,2636.1,2636.0,3.64102813]
[1729633054439,0.37953,2636.1,2636.0,3.58732]
[1729633056242,0.37953,2636.1,2636.0,0.37952]
[1729633056647,0.37953,2636.1,2636.0,3.58732]
[1729633061344,0.37953,2636.1,2636.0,0.37952]
[1729633061650,0.37953,2636.1,2636.0,3.58732]
[1729633062351,0.37953,2636.1,2636.0,3.16346331]
[1729633062849,0.37953,2636.1,2636.0,0.37952]
[1729633063045,0.37953,2636.1,2636.0,3.58732]
[1729633064052,0.37953,2636.1,2636.0,0.37952]
[1729633064441,0.37953,2636.1,2636.0,3.58732]
[1729633064848,0.37953,2636.1,2636.0,0.37952]
[1729633065049,0.37953,2636.1,2636.0,3.58732]
[1729633065547,0.37953,2636.1,2636.0,0.37952]
[1729633065747,0.37953,2636.1,2636.0,3.58732]
[1729633066247,0.37953,2636.1,2636.0,0.37952]
[1729633066447,0.37953,2636.1,2636.0,3.58732]
[1729633067552,0.37953,2636.1,2636.0,0.37952]
[1729633067947,0.37953,2636.1,2636.0,3.58732]
[1729633068843,0.37953,2636.1,2636.0,0.37952]
[1729633069647,0.37953,2636.1,2636.0,3.58732]
[1729633072050,0.37953,2636.1,2636.0,0.37952]
[1729633072442,0.37953,2636.1,2636.0,3.58732]
[1729633072948,0.37953,2636.1,2636.0,0.37952]
[1729633073146,0.37953,2636.1,2636.0,3.58732]
[1729633074053,0.37953,2636.1,2636.0,0.37952]
[1729633074255,0.37953,2636.1,2636.0,3.58732]
[1729633075749,0.37953,2636.1,2636.0,0.37952]
[1729633076054,0.37953,2636.1,2636.0,3.58732]
[1729633078251,0.37953,2636.1,2636.0,0.37952]
[1729633078755,0.37953,2636.1,2636.0,3.58732]
[1729633079146,0.37953,2636.1,2636.0,0.37952]
[1729633079549,0.37953,2636.1,2636.0,3.58732]
[1729633079755,0.37953,2636.1,2636.0,3.2078]
[1729633079953,0.37954,2635.9,2635.8,0.387]
[1729633080151,1.74954,2635.9,2635.8,0.387]
[1729633082554,1.74954,2635.9,2635.8,0.76656]
[1729633083352,1.74954,2635.9,2635.8,0.387]
[1729633083659,1.74954,2635.9,2635.8,1.757]
[1729633084963,1.74954,2635.9,2635.8,2.13656]
[1729633085164,0.37954,2635.9,2635.8,2.13656]
[1729633085763,0.37954,2635.9,2635.8,2.54056]
[1729633092168,0.37954,2635.9,2635.8,2.161]
[1729633093174,0.37954,2635.9,2635.8,2.54056]
[1729633093766,1.74954,2635.9,2635.8,0.387]
[1729633093961,0.37956,2635.8,2635.7,3.2078]
[1729633094180,0.37957,2635.7,2635.6,1.7629]
[1729633094961,0.78007,2635.7,2635.6,1.7629]
[1729633095370,1.19537,2635.7,2635.6,1.7629]
[1729633098681,1.19537,2635.7,2635.6,2.14249]
[1729633098885,1.19537,2635.7,2635.6,1.7629]
[1729633099074,1.19537,2635.7,2635.6,2.14249]
[1729633103283,1.19537,2635.7,2635.6,1.7629]
[1729633103875,1.19537,2635.7,2635.6,0.3929]
[1729633104077,1.19537,2635.7,2635.6,2.14249]
[1729633106186,1.19537,2635.7,2635.6,1.7629]
[1729633106581,1.19537,2635.7,2635.6,2.14249]
[1729633108889,1.19537,2635.7,2635.6,1.7629]
[1729633109377,1.19537,2635.7,2635.6,2.14249]
[1729633116301,1.19537,2635.7,2635.6,1.7629]
[1729633116597,1.19537,2635.7,2635.6,0.3929]
[1729633116990,1.19537,2635.7,2635.6,0.77249]
[1729633117591,1.19537,2635.7,2635.6,0.3929]
[1729633117998,2.56537,2635.7,2635.6,0.3929]
[1729633119296,2.56537,2635.7,2635.6,0.77249]
[1729633121801,2.56537,2635.7,2635.6,0.3929]
[1729633122606,1.19537,2635.7,2635.6,0.77249]
[1729633128911,0.37957,2635.7,2635.6,0.77249]
[1729633129215,0.37957,2635.7,2635.6,1.18509]
[1729633131114,0.37954,2635.9,2635.8,0.37955]
[1729633131321,0.37954,2635.9,2635.8,0.37956]
[1729633131516,0.37954,2635.9,2635.8,1.74956]
[1729633135317,0.37954,2635.9,2635.8,0.37956]
[1729633138119,1.74954,2635.9,2635.8,0.37956]
[1729633141631,1.74954,2635.9,2635.7,1.7823]
[1729633141632,0.37956,2635.8,2635.7,2.16186]
[1729633146031,0.37956,2635.8,2635.7,5.9559185]
[1729633153736,1.37,2636.0,2635.7,5.5763585]
[1729633154032,1.74954,2636.0,2635.9,0.37954]
[1729633159431,0.37956,2635.8,2635.7,3.7940585]
[1729633159633,1.74956,2635.8,2635.7,3.7940585]
[1729633160027,2.56286,2635.8,2635.7,3.7940585]
[1729633176938,2.56286,2635.8,2635.7,4.1736285]
[1729633178945,2.56286,2635.8,2635.7,3.7940585]
[1729633179246,2.56286,2635.8,2635.7,4.1736285]
[1729633179741,2.56286,2635.8,2635.7,3.7940585]
[1729633182335,2.1833,2635.8,2635.7,3.7940585]
[1729633182637,0.76415,2635.9,2635.8,0.37956]
[1729633183936,1.17835,2635.9,2635.8,0.77546]
[1729633185040,0.7988,2635.9,2635.8,0.77546]
[1729633186841,1.17834,2635.9,2635.8,0.77546]
[1729633189955,0.79374,2635.9,2635.8,0.77546]
[1729633199552,0.79374,2635.9,2635.8,0.3959]
[1729633199762,0.79374,2635.9,2635.8,0.77546]
[1729633200150,0.79374,2635.9,2635.8,0.3959]
[1729633200351,1.7842,2635.9,2635.7,7.588117]
[1729633200552,1.74956,2635.8,2635.7,7.588117]
[1729633201755,1.74956,2635.8,2635.7,7.998417]
[1729633205565,1.74956,2635.8,2635.7,7.588117]
[1729633213470,1.74956,2635.8,2635.7,7.992217]
[1729633221573,0.37956,2635.8,2635.7,7.992217]
[1729633221774,0.37956,2635.8,2635.7,8.375817]
[1729633225874,0.37956,2635.8,2635.7,8.755387]
[1729633228676,0.37956,2635.8,2635.7,11.963187]
[1729633229084,0.37956,2635.8,2635.7,8.755387]
[1729633229578,0.37956,2635.8,2635.7,11.963187]
[1729633229782,0.37956,2635.8,2635.7,13.333187]
[1729633231185,0.37956,2635.8,2635.7,10.125387]
[1729633232088,0.37956,2635.8,2635.7,13.333187]
[1729633232579,0.37956,2635.8,2635.7,10.125387]
[1729633232785,0.37956,2635.8,2635.7,13.333187]
[1729633234073,0.37956,2635.8,2635.7,11.963187]
[1729633235182,0.37956,2635.8,2635.7,11.583617]
[1729633236479,0.37956,2635.8,2635.7,8.375817]
[1729633236680,0.37956,2635.8,2635.7,11.583617]
[1729633238095,0.37956,2635.8,2635.7,8.375817]
[1729633238392,0.37956,2635.8,2635.7,11.583617]
[1729633239584,0.37956,2635.8,2635.7,8.375817]
[1729633240893,0.37956,2635.8,2635.7,11.583617]
[1729633242687,0.37956,2635.8,2635.7,8.375817]
[1729633243091,0.37956,2635.8,2635.7,11.583617]
[1729633245580,0.37956,2635.8,2635.7,8.375817]
[1729633245791,0.37956,2635.8,2635.7,11.583617]
[1729633247695,0.37956,2635.8,2635.7,12.953617]
[1729633248687,0.37956,2635.8,2635.7,11.583617]
[1729633251698,0.37956,2635.8,2635.7,8.375817]
[1729633251994,0.37956,2635.8,2635.7,11.583617]
[1729633253695,0.37956,2635.8,2635.7,8.375817]
[1729633253994,0.37956,2635.8,2635.7,11.583617]
[1729633255195,0.37956,2635.8,2635.7,10.795917]
[1729633255398,2.93036,2635.8,2635.7,7.26160394]
[1729633255594,6.72396,2635.8,2635.7,7.26160394]
[1729633257494,6.72396,2635.8,2635.7,6.46666668]
[1729633258798,7.23447821,2635.8,2635.7,6.46666668]
[1729633261006,3.44087821,2635.8,2635.7,6.46666668]
[1729633261399,7.23447821,2635.8,2635.7,6.46666668]
[1729633262209,3.44087821,2635.8,2635.7,6.46666668]
[1729633263807,6.64867821,2635.8,2635.7,6.46666668]
[1729633264308,3.44087821,2635.8,2635.7,6.46666668]
[1729633264504,6.64867821,2635.8,2635.7,6.46666668]
[1729633265306,3.44087821,2635.8,2635.7,6.46666668]
[1729633265607,6.64867821,2635.8,2635.7,6.46666668]
[1729633267705,3.44087821,2635.8,2635.7,6.46666668]
[1729633267901,6.64867821,2635.8,2635.7,6.46666668]
[1729633269205,3.44087821,2635.8,2635.7,6.46666668]
[1729633269413,6.25987821,2635.8,2635.7,6.46666668]
[1729633272108,3.05207821,2635.8,2635.7,6.46666668]
[1729633272298,6.25987821,2635.8,2635.7,6.46666668]
[1729633272505,10.05347821,2635.8,2635.7,6.46666668]
[1729633274304,6.84567821,2635.8,2635.7,6.46666668]
[1729633280000,5.47567821,2635.8,2635.7,6.46666668]
[1729633280203,6.84567821,2635.8,2635.7,6.46666668]
[1729633280515,3.05207821,2635.8,2635.7,6.46666668]
[1729633281410,6.84567821,2635.8,2635.7,6.46666668]
[1729633282012,6.84567821,2635.8,2635.7,5.69892025]
[1729633286912,3.05207821,2635.8,2635.7,5.69892025]
[1729633287114,6.84567821,2635.8,2635.7,5.69892025]
[1729633290220,3.05207821,2635.8,2635.7,5.69892025]
[1729633290718,6.84567821,2635.8,2635.7,5.69892025]
[1729633293117,3.05207821,2635.8,2635.7,5.69892025]
[1729633293318,6.84567821,2635.8,2635.7,5.69892025]
[1729633300314,5.47567821,2635.8,2635.7,5.69892025]
[1729633300524,6.84567821,2635.8,2635.7,5.69892025]
[1729633300715,6.84567821,2635.8,2635.7,5.1251492]
[1729633300917,6.84567821,2635.8,2635.7,4.03411859]
[1729633301312,6.84567821,2635.8,2635.7,3.50012577]
[1729633302923,10.05347821,2635.8,2635.7,3.50012577]
[1729633303919,6.84567821,2635.8,2635.7,3.50012577]
[1729633304234,10.05347821,2635.8,2635.7,3.50012577]
[1729633304818,6.84567821,2635.8,2635.7,3.50012577]
[1729633305023,10.05347821,2635.8,2635.7,3.50012577]
[1729633306024,6.84567821,2635.8,2635.7,3.50012577]
[1729633306226,10.05347821,2635.8,2635.7,3.50012577]
[1729633306431,6.84567821,2635.8,2635.7,3.50012577]
[1729633306824,10.05347821,2635.8,2635.7,3.50012577]
[1729633309521,6.84567821,2635.8,2635.7,3.50012577]
[1729633309726,10.05347821,2635.8,2635.7,3.50012577]
[1729633310722,6.84567821,2635.8,2635.7,3.50012577]
[1729633311034,10.05347821,2635.8,2635.7,3.50012577]
[1729633311921,6.84567821,2635.8,2635.7,3.50012577]
[1729633313223,3.05207821,2635.8,2635.7,3.50012577]
[1729633313629,6.25987821,2635.8,2635.7,3.50012577]
[1729633316831,3.05207821,2635.8,2635.7,3.50012577]
[1729633317135,6.25987821,2635.8,2635.7,3.50012577]
[1729633319828,3.05207821,2635.8,2635.7,3.50012577]
[1729633320024,6.25987821,2635.8,2635.7,3.50012577]
[1729633321032,10.05347821,2635.8,2635.7,3.50012577]
[1729633323130,6.25987821,2635.8,2635.7,3.50012577]
[1729633323344,10.05347821,2635.8,2635.7,3.50012577]
[1729633324240,6.25987821,2635.8,2635.7,3.50012577]
[1729633325030,3.05207821,2635.8,2635.7,3.50012577]
[1729633330228,3.05207821,2635.8,2635.7,3.07669369]
[1729633343135,3.05207821,2635.8,2635.7,3.48809369]
[1729633347246,3.05207821,2635.8,2635.7,3.09755614]
[1729633353242,3.05207821,2635.8,2635.7,2.77650302]
[1729633362252,3.05207821,2635.8,2635.7,2.49885272]
[1729633362651,3.05207821,2635.8,2635.7,1.7730744]
[1729633362856,3.05207821,2635.8,2635.7,1.01569208]
[1729633364057,6.25987821,2635.8,2635.7,1.01569208]
[1729633365263,3.05207821,2635.8,2635.7,1.01569208]
[1729633365561,6.25987821,2635.8,2635.7,1.01569208]
[1729633365961,3.05207821,2635.8,2635.7,1.01569208]
[1729633366361,6.25987821,2635.8,2635.7,1.01569208]
[1729633373955,3.05207821,2635.8,2635.7,1.01569208]
[1729633374149,6.25987821,2635.8,2635.7,1.01569208]
[1729633375860,3.05207821,2635.8,2635.7,1.01569208]
[1729633376465,6.25987821,2635.8,2635.7,1.01569208]
[1729633378257,3.05207821,2635.8,2635.7,1.01569208]
[1729633378460,6.25987821,2635.8,2635.7,1.01569208]
[1729633382366,3.05207821,2635.8,2635.7,1.01569208]
[1729633382561,6.25987821,2635.8,2635.7,1.01569208]
[1729633383973,3.05207821,2635.8,2635.7,1.01569208]
[1729633384159,6.25987821,2635.8,2635.7,1.01569208]
[1729633385365,3.05207821,2635.8,2635.7,1.01569208]
[1729633385674,6.25987821,2635.8,2635.7,1.01569208]
[1729633386468,3.05207821,2635.8,2635.7,1.01569208]
[1729633386667,6.25987821,2635.8,2635.7,1.01569208]
[1729633387270,3.05207821,2635.8,2635.7,1.01569208]
[1729633387670,6.25987821,2635.8,2635.7,1.01569208]
[1729633393473,3.05207821,2635.8,2635.7,1.01569208]
[1729633393676,6.25987821,2635.8,2635.7,1.01569208]
[1729633396376,3.05207821,2635.8,2635.7,1.01569208]
[1729633396673,6.25987821,2635.8,2635.7,1.01569208]
[1729633401464,3.05207821,2635.8,2635.7,1.01569208]
[1729633403275,6.25987821,2635.8,2635.7,1.01569208]
[1729633403678,3.05207821,2635.8,2635.7,1.01569208]
[1729633405076,6.25987821,2635.8,2635.7,1.01569208]
[1729633405677,3.05207821,2635.8,2635.7,1.01569208]
[1729633405879,6.25987821,2635.8,2635.7,1.01569208]
[1729633406474,3.05207821,2635.8,2635.7,1.01569208]
[1729633406673,6.25987821,2635.8,2635.7,1.01569208]
[1729633407178,3.05207821,2635.8,2635.7,1.01569208]
[1729633407379,6.25987821,2635.8,2635.7,1.01569208]
[1729633407973,3.05207821,2635.8,2635.7,1.01569208]
[1729633411582,6.25987821,2635.8,2635.7,1.01569208]
[1729633412386,3.05207821,2635.8,2635.7,1.01569208]
[1729633413188,6.25987821,2635.8,2635.7,1.01569208]
[1729633415089,9.67391821,2635.8,2635.5,0.3873]
[1729633415391,9.29265794,2635.6,2635.5,0.3873]
[1729633418393,9.29265794,2635.6,2635.5,0.7955]
[1729633419893,10.08265794,2635.6,2635.5,0.7955]
[1729633425404,13.29045794,2635.6,2635.5,0.7955]
[1729633425813,10.08265794,2635.6,2635.5,0.7955]
[1729633426106,13.29045794,2635.6,2635.5,0.7955]
[1729633427213,10.08265794,2635.6,2635.5,0.7955]
[1729633427812,13.29045794,2635.6,2635.5,0.7955]
[1729633428409,0.3796,2635.5,2635.4,0.3947]
[1729633429314,0.7985,2635.5,2635.4,0.36935982]
[1729633430811,0.37961,2635.4,2635.3,0.8261]
[1729633432104,1.74961,2635.4,2635.3,0.8261]
[1729633432508,2.13491,2635.4,2635.3,0.8261]
[1729633433008,0.76491,2635.4,2635.3,0.8261]
[1729633433209,2.13491,2635.4,2635.3,0.8261]
[1729633433406,3.50491,2635.4,2635.3,0.4047]
[1729633433616,3.92651,2635.4,2635.3,0.4047]
[1729633433914,4.71651,2635.4,2635.3,0.4047]
[1729633434115,3.50491,2635.4,2635.3,0.4047]
[1729633434314,0.37964,2635.2,2635.1,0.3908]
[1729633434505,3.11964,2635.2,2635.1,0.3908]
[1729633434906,2.74,2635.2,2634.8,1.18199]
[1729633435114,1.74969,2634.9,2634.8,1.18199]
[1729633435318,1.94190853,2634.9,2634.8,1.18199]
[1729633435518,1.94190853,2634.9,2634.8,4.97719]
[1729633437010,1.94190853,2634.9,2634.8,0.8023]
[1729633440218,0.57190853,2634.9,2634.8,0.8023]
[1729633440416,0.57190853,2634.9,2634.8,4.5975]
[1729633440715,0.94911,2635.3,2634.8,4.5975]
[1729633440716,0.37964,2635.3,2635.1,0.37965]
[1729633441017,0.37961,2635.5,2635.2,0.8081]
[1729633441323,0.37961,2635.5,2635.3,4.17402]
[1729633441719,0.37961,2635.5,2635.4,3.7944]
[1729633442112,1.74961,2635.5,2635.4,3.7944]
[1729633443819,1.74961,2635.5,2635.4,4.2178]
[1729633445925,1.74961,2635.5,2635.4,3.7944]
[1729633446126,2.17331,2635.5,2635.4,3.7944]
[1729633448616,1.7937,2635.5,2635.4,3.7944]
[1729633449722,2.1733,2635.5,2635.4,3.7944]
[1729633449921,1.7496,2635.5,2635.4,3.7944]
[1729633450427,0.19292164,2635.6,2635.4,3.7944]
[1729633450723,1.37,2635.5,2635.4,0.37961]
[1729633451020,1.37,2635.6,2635.5,4.174]
[1729633451228,1.37,2635.6,2635.5,0.3796]
[1729633451419,1.37,2635.6,2635.5,4.174]
[1729633457126,0.18712879,2635.8,2635.7,0.37957]
[1729633457433,1.55712879,2635.8,2635.7,0.37957]
[1729633457634,1.37,2635.8,2635.7,4.17317]
[1729633458132,1.55664812,2635.8,2635.7,4.17317]
[1729633464736,1.93620812,2635.8,2635.7,4.17317]
[1729633470437,2.34220812,2635.8,2635.7,4.17317]
[1729633473633,1.96264812,2635.8,2635.7,4.17317]
[1729633474742,2.34220812,2635.8,2635.7,4.17317]
[1729633476949,2.34220812,2635.8,2635.7,0.37957]
[1729633477150,3.14790812,2635.8,2635.7,0.37957]
[1729633479042,1.39834812,2635.8,2635.7,0.37957]
[1729633479239,0.18664812,2635.8,2635.7,4.17317]
[1729633479446,1.37,2635.8,2635.7,4.17317]
[1729633479646,1.788,2635.8,2635.7,0.37957]
[1729633479852,1.788,2635.8,2635.7,4.17317]
[1729633480149,1.97824227,2635.8,2635.7,4.17317]
[1729633480745,1.788,2635.8,2635.7,4.17317]
[1729633483552,0.5674278,2635.9,2635.8,0.37956]
[1729633483754,1.9374278,2635.9,2635.8,0.37956]
[1729633483956,1.9374278,2635.9,2635.8,4.17316]
[1729633484756,1.9374278,2635.9,2635.8,0.37956]
[1729633486855,1.9374278,2635.9,2635.8,4.17316]
[1729633487460,1.9374278,2635.9,2635.8,0.37956]
[1729633487660,1.9374278,2635.9,2635.8,4.17316]
[1729633488157,1.9374278,2635.9,2635.8,0.37956]
[1729633489554,1.9374278,2635.9,2635.8,4.17316]
[1729633489759,1.9374278,2635.9,2635.8,0.37956]
[1729633489956,1.9374278,2635.9,2635.8,4.17316]
[1729633490156,1.9374278,2635.9,2635.8,0.37956]
[1729633498067,0.5674278,2635.9,2635.8,0.37956]
[1729633498265,1.5578678,2635.9,2635.8,0.37956]
[1729633498770,1.37,2635.9,2635.8,0.37956]
[1729633498974,1.5586796,2635.9,2635.8,0.37956]
[1729633499563,0.1886796,2635.9,2635.8,0.37956]
[1729633499763,1.37,2635.9,2635.8,0.37956]
[1729633500472,1.5626686,2635.9,2635.8,0.37956]
[1729633504369,1.37,2635.9,2635.8,0.37956]
[1729633504777,1.55957237,2635.9,2635.8,0.37956]
[1729633509075,0.37951,2636.2,2636.1,0.3795]
[1729633509275,0.3795,2636.3,2636.2,0.37949]
[1729633509475,1.7495,2636.3,2636.2,0.37949]
[1729633511376,0.3924,2636.4,2635.9,1.7797]
[1729633511577,1.37,2636.2,2636.0,4.5778]
[1729633511773,1.37,2636.3,2636.2,0.3795]
[1729633512181,0.4041,2636.5,2636.2,4.5747]
[1729633512374,0.4041,2636.5,2636.4,0.37947]
[1729633512683,1.7741,2636.5,2636.4,0.37947]
[1729633512883,4.15622,2637.2,2636.4,11.53061131]
[1729633513077,0.37942,2636.8,2636.7,0.37942]
[1729633513684,1.74942,2636.8,2636.7,0.37942]
[1729633514086,2.13702,2636.8,2636.7,0.37942]
[1729633514684,2.32808876,2636.8,2636.7,0.37942]
[1729633515187,2.13702,2636.8,2636.7,0.37942]
[1729633515389,2.33014,2636.8,2636.7,0.37942]
[1729633515790,2.13702,2636.8,2636.7,0.37942]